bitfinex/quotes_BTCUSD_20210101
["timestamp","ask_amount","ask_price","bid_price","bid_amount"]
[1609490045612,0.0006,29097.0,29096.0,0.92580542]
[1609490045814,0.0006,29097.0,29096.0,0.82580542]
[1609490047317,0.5006,29097.0,29096.0,0.65080542]
[1609490047517,0.51692282,29097.0,29096.0,0.65080542]
[1609490047723,0.61692282,29097.0,29096.0,0.364621]
[1609490047918,0.61692282,29097.0,29095.0,0.01524792]
[1609490048124,0.364621,29096.0,29095.0,7.92e-06]
[1609490048357,0.549621,29096.0,29095.0,7.92e-06]
[1609490048543,1.09208492,29096.0,29095.0,7.92e-06]
[1609490049544,1.09208492,29096.0,29095.0,0.01219999]
[1609490049744,1.30208492,29096.0,29095.0,0.01219999]
[1609490050346,0.78808912,29096.0,29095.0,0.01219999]
[1609490050546,1.30208492,29096.0,29095.0,0.01219999]
[1609490051345,0.88548492,29096.0,29095.0,0.01219999]
[1609490053305,0.37148912,29096.0,29095.0,0.01219999]
[1609490054352,0.343021,29096.0,29095.0,0.01219999]
[1609490055154,2.22148912,29096.0,29095.0,0.03219999]
[1609490055356,2.193021,29096.0,29095.0,0.03219999]
[1609490055656,2.22148912,29096.0,29095.0,0.03219999]
[1609490055885,2.193021,29096.0,29095.0,0.03219999]
[1609490056285,0.343021,29096.0,29095.0,0.03219999]
[1609490057182,1.943021,29096.0,29095.0,0.03219999]
[1609490057584,1.97148912,29096.0,29095.0,0.03219999]
[1609490058285,1.943021,29096.0,29095.0,0.03219999]
[1609490058986,1.97148912,29096.0,29095.0,0.03219999]
[1609490059583,1.943021,29096.0,29095.0,0.03219999]
[1609490061186,2.893021,29096.0,29095.0,0.03219999]
[1609490062009,1.943021,29096.0,29095.0,0.03219999]
[1609490062210,3.543021,29096.0,29095.0,0.02719999]
[1609490063009,1.943021,29096.0,29095.0,0.02719999]
[1609490063210,2.843021,29096.0,29095.0,0.02719999]
[1609490063410,1.943021,29096.0,29095.0,0.02719999]
[1609490066214,2.593021,29096.0,29095.0,0.02719999]
[1609490066420,1.943021,29096.0,29095.0,0.02719999]
[1609490067166,3.043021,29096.0,29095.0,0.02719999]
[1609490067367,1.943021,29096.0,29095.0,0.02719999]
[1609490068268,1.943021,29096.0,29095.0,0.0312002]
[1609490068467,0.343021,29096.0,29095.0,0.0312002]
[1609490069070,2.593021,29096.0,29095.0,0.0312002]
[1609490070907,2.593021,29096.0,29095.0,0.13298021]
[1609490071206,2.824621,29096.0,29095.0,0.12998021]
[1609490071609,2.824621,29096.0,29095.0,0.0282002]
[1609490072910,2.85308912,29096.0,29095.0,0.0282002]
[1609490073106,2.824621,29096.0,29095.0,0.0282002]
[1609490074713,2.824621,29096.0,29095.0,0.03060026]
[1609490075514,0.574621,29096.0,29095.0,0.03060026]
[1609490075717,0.343021,29096.0,29095.0,0.03060026]
[1609490076118,1.793021,29096.0,29095.0,0.03060026]
[1609490076559,2.843021,29096.0,29095.0,0.02975526]
[1609490077558,3.062971,29096.0,29095.0,0.02975526]
[1609490080985,2.012971,29096.0,29095.0,0.02975526]
[1609490081782,3.812971,29096.0,29095.0,0.02891026]
[1609490082563,1.793021,29096.0,29095.0,0.02891026]
[1609490083964,2.843021,29096.0,29095.0,0.02891026]
[1609490085001,1.793021,29096.0,29095.0,0.02891026]
[1609490086505,0.343021,29096.0,29095.0,0.02891026]
[1609490087830,1.543021,29096.0,29095.0,0.02813687]
[1609490088229,0.343021,29096.0,29095.0,0.02813687]
[1609490088829,1.793021,29096.0,29095.0,0.02813687]
[1609490090732,0.343021,29096.0,29095.0,0.02813687]
[1609490091832,1.843021,29096.0,29095.0,0.02813687]
[1609490093448,0.343021,29096.0,29095.0,0.02813687]
[1609490093851,0.943021,29096.0,29095.0,0.02813687]
[1609490094650,0.343021,29096.0,29095.0,0.02813687]
[1609490095753,1.093021,29096.0,29095.0,0.02813687]
[1609490096255,0.343021,29096.0,29095.0,0.02813687]
[1609490098500,0.443021,29096.0,29095.0,0.02813687]
[1609490098700,1.443021,29096.0,29095.0,0.02813687]
[1609490098903,0.443021,29096.0,29095.0,0.02813687]
[1609490100135,0.438021,29096.0,29095.0,0.02813687]
[1609490101034,0.433021,29096.0,29095.0,0.02813687]
[1609490101433,0.428021,29096.0,29095.0,0.02813687]
[1609490102735,1.028021,29096.0,29095.0,0.02813687]
[1609490102962,0.428021,29096.0,29095.0,0.02813687]
[1609490103361,0.428021,29096.0,29095.0,0.02313687]
[1609490103768,2.728021,29096.0,29095.0,0.02313687]
[1609490104163,0.428021,29096.0,29095.0,0.02313687]
[1609490104864,1.428021,29096.0,29095.0,0.02313687]
[1609490105664,2.128021,29096.0,29095.0,0.02313687]
[1609490105862,1.428021,29096.0,29095.0,0.02313687]
[1609490106265,2.651531,29096.0,29095.0,6.87e-06]
[1609490106473,7.87999912,29096.0,29095.0,6.87e-06]
[1609490107473,0.0002,29095.0,29083.0,0.31715991]
[1609490107674,0.2574,29084.0,29083.0,0.31715991]
[1609490107878,5.22542885,29084.0,29081.0,0.06279042]
[1609490108174,0.51,29083.0,29081.0,0.06279042]
[1609490108368,5.51,29083.0,29081.0,0.06279042]
[1609490108615,5.0,29082.0,29080.0,4.233474]
[1609490108816,5.51,29082.0,29080.0,4.233474]
[1609490109015,6.67763885,29082.0,29080.0,4.233474]
[1609490109219,5.0,29081.0,29080.0,4.233474]
[1609490109411,5.51,29081.0,29080.0,4.233474]
[1609490109617,5.53696524,29081.0,29080.0,4.233474]
[1609490111617,6.83696524,29081.0,29080.0,4.233474]
[1609490111814,5.53696524,29081.0,29080.0,4.233474]
[1609490114673,6.91543336,29081.0,29080.0,4.233474]
[1609490114876,5.56543336,29081.0,29080.0,4.233474]
[1609490115072,5.53696524,29081.0,29080.0,4.233474]
[1609490116408,5.53196524,29081.0,29080.0,4.233474]
[1609490117610,6.53196524,29081.0,29080.0,4.233474]
[1609490122634,6.53196524,29081.0,29080.0,4.193474]
[1609490123235,6.53196524,29081.0,29080.0,4.188474]
[1609490124137,6.53196524,29081.0,29080.0,4.183474]
[1609490124838,6.52696524,29081.0,29080.0,4.183474]
[1609490130398,6.01696524,29081.0,29080.0,4.183474]
[1609490130803,5.01696524,29081.0,29080.0,4.183474]
[1609490135819,5.01696524,29081.0,29080.0,4.181536]
[1609490137619,5.01696524,29081.0,29080.0,4.176536]
[1609490138223,5.49696524,29081.0,29080.0,4.176536]
[1609490139446,5.01696524,29081.0,29080.0,4.176536]
[1609490139847,5.01696524,29081.0,29080.0,5.161536]
[1609490140049,5.01696524,29081.0,29080.0,4.176536]
[1609490140251,5.11696524,29081.0,29080.0,5.161536]
[1609490140447,5.11696524,29081.0,29080.0,4.321536]
[1609490140848,5.11696524,29081.0,29080.0,5.306536]
[1609490141246,5.11696524,29081.0,29080.0,4.321536]
[1609490141448,5.11696524,29081.0,29080.0,5.306536]
[1609490142149,5.11696524,29081.0,29080.0,4.321536]
[1609490143209,5.11696524,29081.0,29080.0,5.306536]
[1609490144336,5.11696524,29081.0,29080.0,4.176536]
[1609490145137,5.11696524,29081.0,29080.0,5.161536]
[1609490145940,5.09196524,29081.0,29080.0,5.161536]
[1609490146440,5.09196524,29081.0,29080.0,4.176536]
[1609490147040,5.09196524,29081.0,29080.0,5.161536]
[1609490147445,5.09196524,29081.0,29080.0,4.176536]
[1609490147643,5.09196524,29081.0,29080.0,4.376536]
[1609490148677,5.09196524,29081.0,29080.0,4.176536]
[1609490151078,5.09196524,29081.0,29080.0,5.161536]
[1609490151478,5.09196524,29081.0,29080.0,4.176536]
[1609490151779,5.09196524,29081.0,29080.0,4.826536]
[1609490153694,5.09196524,29081.0,29080.0,4.824536]
[1609490154595,5.09196524,29081.0,29080.0,5.944536]
[1609490154796,5.09196524,29081.0,29080.0,5.809536]
[1609490155201,5.09196524,29081.0,29080.0,4.88734933]
[1609490155599,5.09196524,29081.0,29080.0,5.87234933]
[1609490155898,5.09196524,29081.0,29080.0,4.88734933]
[1609490157097,5.09196524,29081.0,29080.0,5.87234933]
[1609490157392,10.09196524,29081.0,29080.0,5.87234933]
[1609490157755,10.09196524,29081.0,29080.0,4.88734933]
[1609490157954,10.09196524,29081.0,29080.0,5.07234933]
[1609490158352,10.09196524,29081.0,29080.0,4.88734933]
[1609490160399,10.09196524,29081.0,29080.0,4.23734933]
[1609490163025,10.19196524,29081.0,29080.0,4.16066933]
[1609490163220,10.73043336,29081.0,29080.0,4.14362933]
[1609490163624,10.70196524,29081.0,29080.0,4.080816]
[1609490164615,11.70196524,29081.0,29080.0,4.080816]
[1609490165217,11.73043336,29081.0,29080.0,4.080816]
[1609490165817,11.70196524,29081.0,29080.0,4.080816]
[1609490166622,11.70196524,29081.0,29080.0,2.377826]
[1609490166824,11.73043336,29081.0,29080.0,2.326706]
[1609490167518,11.73043336,29081.0,29080.0,2.318186]
[1609490168223,13.45196524,29081.0,29080.0,2.000026]
[1609490168521,13.45196524,29081.0,29080.0,1.450026]
[1609490168744,0.33180302,29080.0,29079.0,4.00001391]
[1609490168944,4.96,29080.0,29079.0,4.00001391]
[1609490169144,14.96,29080.0,29079.0,4.00001391]
[1609490169344,16.46,29080.0,29079.0,4.00001391]
[1609490169848,16.46,29080.0,29079.0,0.00789945]
[1609490170151,17.8202656,29080.0,29079.0,1.391e-05]
[1609490170352,0.06715,29077.0,29065.0,99.4845652]
[1609490170656,0.33180302,29075.0,29066.0,0.06284012]
[1609490170851,0.33180302,29073.0,29066.0,0.06284012]
[1609490171053,1.33180302,29071.0,29065.0,99.4837652]
[1609490171356,5.39451,29066.0,29065.0,99.4823652]
[1609490171548,6.89451,29066.0,29065.0,92.8279652]
[1609490171750,8.48634885,29066.0,29065.0,86.6495652]
[1609490171947,12.16481697,29066.0,29065.0,82.5443652]
[1609490172150,18.66280665,29066.0,29065.0,82.3622652]
[1609490172441,19.02307779,29066.0,29065.0,82.3496652]
[1609490172608,18.99460967,29066.0,29065.0,82.3434652]
[1609490172805,19.01807779,29066.0,29065.0,82.3414652]
[1609490173109,19.01807779,29066.0,29065.0,81.5686652]
[1609490173409,18.01807779,29066.0,29065.0,81.5638652]
[1609490173606,18.01807779,29066.0,29065.0,81.5576652]
[1609490173809,18.01807779,29066.0,29065.0,81.5518652]
[1609490174104,18.01807779,29066.0,29065.0,81.5498652]
[1609490174354,18.05393995,29066.0,29065.0,80.9824652]
[1609490174556,18.05393995,29066.0,29065.0,80.9574652]
[1609490175055,15.94293995,29066.0,29065.0,80.9550652]
[1609490175252,15.94293995,29066.0,29065.0,80.9516652]
[1609490175452,15.94293995,29066.0,29065.0,80.7384652]
[1609490175651,15.94293995,29066.0,29065.0,80.7344652]
[1609490175853,16.94293995,29066.0,29065.0,80.7268652]
[1609490176060,16.98055888,29066.0,29065.0,80.7202652]
[1609490176254,16.98055888,29066.0,29065.0,80.7184652]
[1609490176457,16.0522859,29066.0,29065.0,80.7170652]
[1609490176858,16.0522859,29066.0,29065.0,78.6077652]
[1609490177059,16.3959859,29066.0,29065.0,77.7105652]
[1609490177259,16.3959859,29066.0,29065.0,77.7037652]
[1609490177456,17.22834705,29066.0,29065.0,77.52778858]
[1609490177656,17.19987893,29066.0,29065.0,77.52378858]
[1609490177956,17.3959859,29066.0,29065.0,77.51738858]
[1609490178169,17.3959859,29066.0,29065.0,77.51318858]
[1609490178470,17.3959859,29066.0,29065.0,77.50758858]
[1609490178668,17.3959859,29066.0,29065.0,77.50398858]
[1609490178869,17.41394512,29066.0,29065.0,77.50158858]
[1609490179169,14.10014815,29066.0,29065.0,77.24998858]
[1609490179377,13.62416513,29066.0,29065.0,77.24998858]
[1609490179571,13.26562109,29066.0,29065.0,77.24998858]
[1609490179776,13.22975893,29066.0,29065.0,77.24998858]
[1609490180172,12.22975893,29066.0,29065.0,77.44998858]
[1609490180373,12.22975893,29066.0,29065.0,77.24998858]
[1609490182274,13.22975893,29066.0,29065.0,77.24998858]
[1609490182479,15.42875778,29066.0,29065.0,77.24978858]
[1609490183372,15.32875778,29066.0,29065.0,77.24978858]
[1609490183571,14.32875778,29066.0,29065.0,76.24978858]
[1609490183796,13.94568778,29066.0,29065.0,76.24978858]
[1609490183996,13.77568778,29066.0,29065.0,76.24978858]
[1609490184196,13.70620778,29066.0,29065.0,76.14978858]
[1609490184695,15.0380108,29066.0,29065.0,76.14978858]
[1609490184896,13.95620778,29066.0,29065.0,76.14978858]
[1609490185496,14.06378252,29066.0,29065.0,76.14978858]
[1609490185697,15.06378252,29066.0,29065.0,76.14978858]
[1609490185896,15.00497252,29066.0,29065.0,76.14978858]
[1609490186897,14.83733367,29066.0,29065.0,76.14978858]
[1609490187195,15.00497252,29066.0,29065.0,76.14978858]
[1609490187483,14.83733367,29066.0,29065.0,76.14978858]
[1609490188752,13.50497252,29066.0,29065.0,76.14978858]
[1609490188956,15.00497252,29066.0,29065.0,76.14978858]
[1609490189385,14.83733367,29066.0,29065.0,76.14978858]
[1609490189586,15.00497252,29066.0,29065.0,76.14978858]
[1609490189989,14.83733367,29066.0,29065.0,76.14978858]
[1609490190487,15.00497252,29066.0,29065.0,76.14978858]
[1609490190889,14.83733367,29066.0,29065.0,76.14978858]
[1609490192188,15.20709252,29066.0,29065.0,76.14978858]
[1609490192388,15.03945367,29066.0,29065.0,76.14978858]
[1609490192587,14.88945367,29066.0,29065.0,76.14978858]
[1609490193208,15.05709252,29066.0,29065.0,76.14978858]
[1609490193611,14.87190367,29066.0,29065.0,76.14978858]
[1609490194015,14.81978367,29066.0,29065.0,76.14978858]
[1609490194313,14.86210367,29066.0,29065.0,76.14978858]
[1609490194513,15.02974252,29066.0,29065.0,76.14978858]
[1609490194713,14.86210367,29066.0,29065.0,76.14978858]
[1609490194917,14.86210367,29066.0,29065.0,76.14478858]
[1609490195516,14.81978367,29066.0,29065.0,76.14478858]
[1609490195716,14.98742252,29066.0,29065.0,76.14478858]
[1609490196916,14.81978367,29066.0,29065.0,76.14478858]
[1609490197923,13.31978367,29066.0,29065.0,76.14478858]
[1609490199141,14.01817707,29066.0,29065.0,76.14478858]
[1609490201943,14.15941779,29066.0,29065.0,76.14478858]
[1609490203086,14.25941779,29066.0,29065.0,76.14478858]
[1609490203295,15.95941779,29066.0,29065.0,76.14478858]
[1609490203488,16.21626779,29066.0,29065.0,76.14478858]
[1609490203688,14.71626779,29066.0,29065.0,76.14478858]
[1609490204728,14.62626779,29066.0,29065.0,76.14478858]
[1609490205437,14.33373779,29066.0,29065.0,76.14478858]
[1609490205629,14.53373779,29066.0,29065.0,76.14478858]
[1609490206833,14.33373779,29066.0,29065.0,76.14478858]
[1609490207136,14.15941779,29066.0,29065.0,76.14478858]
[1609490207333,13.5777014,29066.0,29065.0,76.14478858]
[1609490207538,13.54184305,29066.0,29065.0,76.14478858]
[1609490208148,13.54184305,29066.0,29065.0,77.12978858]
[1609490208446,13.54184305,29066.0,29065.0,77.22978858]
[1609490208650,13.54184305,29066.0,29065.0,78.04478858]
[1609490208849,13.02654305,29066.0,29065.0,78.04478858]
[1609490209546,12.02654305,29066.0,29065.0,78.04478858]
[1609490209749,12.02654305,29066.0,29065.0,78.24478858]
[1609490209952,12.02654305,29066.0,29065.0,78.04478858]
[1609490211152,12.02654305,29066.0,29065.0,77.94478858]
[1609490213977,11.85970305,29066.0,29065.0,78.04478858]
[1609490214177,11.85570305,29066.0,29065.0,78.04978858]
[1609490214374,7.71446233,29066.0,29065.0,78.89978858]
[1609490214574,7.71446233,29066.0,29065.0,78.14978858]
[1609490214883,7.71446233,29066.0,29065.0,77.15978858]
[1609490215075,7.91446233,29066.0,29065.0,77.15978858]
[1609490215276,7.71446233,29066.0,29065.0,76.34478858]
[1609490218320,7.71446233,29066.0,29065.0,77.32978858]
[1609490220450,3.71446233,29066.0,29065.0,77.32978858]
[1609490220652,8.71446233,29066.0,29065.0,78.32978858]
[1609490220853,8.71446233,29066.0,29065.0,78.12978858]
[1609490221049,8.71446233,29066.0,29065.0,77.14478858]
[1609490221952,8.71446233,29066.0,29065.0,78.12978858]
[1609490222158,8.71446233,29066.0,29065.0,78.42978858]
[1609490222359,8.72533777,29066.0,29065.0,78.42978858]
[1609490222557,8.72533777,29066.0,29065.0,78.43478858]
[1609490222754,8.72533777,29066.0,29065.0,78.510973]
[1609490223179,8.72533777,29066.0,29065.0,78.310973]
[1609490223684,8.72533777,29066.0,29065.0,78.510973]
[1609490224375,8.72533777,29066.0,29065.0,78.43478858]
[1609490224579,8.72533777,29066.0,29065.0,78.510973]
[1609490226282,8.72533777,29066.0,29065.0,78.505973]
[1609490226482,8.72533777,29066.0,29065.0,78.405973]
[1609490226685,8.72533777,29066.0,29065.0,77.34478858]
[1609490227494,8.72533777,29066.0,29065.0,78.405973]
[1609490227689,8.72533777,29066.0,29065.0,77.34478858]
[1609490228382,8.72533777,29066.0,29065.0,77.14478858]
[1609490230829,8.72533777,29066.0,29065.0,78.12978858]
[1609490231632,8.72533777,29066.0,29065.0,77.14478858]
[1609490231829,8.72533777,29066.0,29065.0,78.12978858]
[1609490233887,8.72533777,29066.0,29065.0,78.32978858]
[1609490234286,8.72533777,29066.0,29065.0,78.12978858]
[1609490234587,8.72533777,29066.0,29065.0,78.32978858]
[1609490234886,8.72533777,29066.0,29065.0,78.405973]
[1609490235690,8.72533777,29066.0,29065.0,78.32978858]
[1609490237389,8.72533777,29066.0,29065.0,77.34478858]
[1609490237590,8.72533777,29066.0,29065.0,78.32978858]
[1609490237789,8.72533777,29066.0,29065.0,77.34478858]
[1609490238091,8.72533777,29066.0,29065.0,78.405973]
[1609490238607,8.72533777,29066.0,29065.0,77.420973]
[1609490238806,8.71533777,29066.0,29065.0,77.420973]
[1609490239006,8.71533777,29066.0,29065.0,77.34478858]
[1609490239603,8.71533777,29066.0,29065.0,78.12978858]
[1609490239907,8.71533777,29066.0,29065.0,78.32978858]
[1609490240605,8.71533777,29066.0,29065.0,78.405973]
[1609490240806,8.71533777,29066.0,29065.0,78.69440158]
[1609490241103,8.71533777,29066.0,29065.0,78.770586]
[1609490241506,8.71533777,29066.0,29065.0,78.83343265]
[1609490251113,8.81962492,29066.0,29065.0,78.83343265]
[1609490253243,8.71533777,29066.0,29065.0,78.83343265]
[1609490254247,8.71533777,29066.0,29065.0,78.75724823]
[1609490254646,8.71533777,29066.0,29065.0,77.77224823]
[1609490254842,8.71533777,29066.0,29065.0,78.75724823]
[1609490255451,8.71533777,29066.0,29065.0,77.40763523]
[1609490255653,8.71533777,29066.0,29065.0,77.20763523]
[1609490255855,9.06889662,29066.0,29065.0,77.20763523]
[1609490256050,9.25125777,29066.0,29065.0,77.20763523]
[1609490256245,9.35198777,29066.0,29065.0,76.20763523]
[1609490256753,9.00198777,29066.0,29065.0,76.14478858]
[1609490256945,9.00198777,29066.0,29065.0,76.33589342]
[1609490257148,8.81606777,29066.0,29065.0,76.33589342]
[1609490257353,8.88297662,29066.0,29065.0,76.33589342]
[1609490257546,8.71533777,29066.0,29065.0,76.33589342]
[1609490258046,8.95681662,29066.0,29065.0,76.33589342]
[1609490258246,9.00466662,29066.0,29065.0,76.33589342]
[1609490258450,9.77226662,29066.0,29065.0,76.33589342]
[1609490259474,9.60462777,29066.0,29065.0,76.33589342]
[1609490260273,8.97293777,29066.0,29065.0,76.33589342]
[1609490261072,8.97293777,29066.0,29065.0,76.32589342]
[1609490263125,9.09962777,29066.0,29065.0,76.32589342]
[1609490265058,9.26726662,29066.0,29065.0,76.32589342]
[1609490265459,9.09962777,29066.0,29065.0,76.32589342]
[1609490265857,9.24462777,29066.0,29065.0,76.32589342]
[1609490266359,9.09962777,29066.0,29065.0,76.32589342]
[1609490267763,9.05566777,29066.0,29065.0,76.32589342]
[1609490267962,8.97293777,29066.0,29065.0,76.32589342]
[1609490269187,9.20204662,29066.0,29065.0,76.32589342]
[1609490269389,9.03440777,29066.0,29065.0,76.32589342]
[1609490269589,9.04180777,29066.0,29065.0,76.32589342]
[1609490269989,9.69180777,29066.0,29065.0,76.32589342]
[1609490270590,8.77680777,29066.0,29065.0,76.32589342]
[1609490271490,8.71533777,29066.0,29065.0,76.32589342]
[1609490272290,8.81842764,29066.0,29065.0,76.42862487]
[1609490272489,8.71533777,29066.0,29065.0,76.56089342]
[1609490273291,8.71533777,29066.0,29065.0,76.32589342]
[1609490274424,11.69304662,29066.0,29065.0,76.13478858]
[1609490274620,13.01021474,29066.0,29065.0,76.13478858]
[1609490274919,13.78907451,29066.0,29065.0,76.13478858]
[1609490275123,13.82492993,29066.0,29065.0,76.10499396]
[1609490276124,12.32492993,29066.0,29065.0,76.10499396]
[1609490276318,12.32492993,29066.0,29065.0,76.09531996]
[1609490276518,14.55646181,29066.0,29065.0,76.09531996]
[1609490277024,15.24346181,29066.0,29065.0,76.09531996]
[1609490277315,15.57526483,29066.0,29065.0,76.09531996]
[1609490277515,14.07526483,29066.0,29065.0,76.09531996]
[1609490278156,15.57526483,29066.0,29065.0,76.09531996]
[1609490279591,15.40762598,29066.0,29065.0,76.09531996]
[1609490279992,15.57526483,29066.0,29065.0,76.09531996]
[1609490280391,15.57526483,29066.0,29065.0,76.07736261]
[1609490281294,15.24346181,29066.0,29065.0,76.07736261]
[1609490281998,15.07582296,29066.0,29065.0,76.07736261]
[1609490282399,14.80696319,29066.0,29065.0,76.07736261]
[1609490282594,14.80696319,29066.0,29065.0,75.97736261]
[1609490282898,13.30696319,29066.0,29065.0,75.97736261]
[1609490283096,12.20696319,29066.0,29065.0,75.97736261]
[1609490283318,12.20696319,29066.0,29065.0,75.94149511]
[1609490286218,12.20696319,29066.0,29065.0,75.69149714]
[1609490286418,12.24615531,29066.0,29065.0,74.6513332]
[1609490286618,12.02399319,29066.0,29065.0,74.6513332]
[1609490286820,12.17884319,29066.0,29065.0,74.6513332]
[1609490287822,12.34648204,29066.0,29065.0,74.6513332]
[1609490288024,13.40621047,29066.0,29065.0,74.6513332]
[1609490288424,13.67509483,29066.0,29065.0,74.6513332]
[1609490288821,13.67509483,29066.0,29065.0,73.9642332]
[1609490289081,13.67509483,29066.0,29065.0,73.2771332]
[1609490289483,13.8163348,29066.0,29065.0,73.2771332]
[1609490291679,13.64869595,29066.0,29065.0,73.2771332]
[1609490291880,13.8163348,29066.0,29065.0,73.2771332]
[1609490292080,13.64675523,29066.0,29065.0,73.2771332]
[1609490292940,13.47911638,29066.0,29065.0,73.2771332]
[1609490293345,13.37062638,29066.0,29065.0,73.2771332]
[1609490293540,13.37062638,29066.0,29065.0,73.2721332]
[1609490294945,13.53826523,29066.0,29065.0,73.2721332]
[1609490295545,13.37062638,29066.0,29065.0,73.2721332]
[1609490295745,13.53826523,29066.0,29065.0,73.2721332]
[1609490295945,13.37062638,29066.0,29065.0,73.2721332]
[1609490296477,12.31089795,29066.0,29065.0,73.2671332]
[1609490298178,12.41817795,29066.0,29065.0,73.2671332]
[1609490299780,12.18873795,29066.0,29065.0,73.2621332]
[1609490300379,12.31993795,29066.0,29065.0,73.2621332]
[1609490300579,11.31993795,29066.0,29065.0,73.2621332]
[1609490302394,11.31993795,29066.0,29065.0,73.2571332]
[1609490304397,11.18873795,29066.0,29065.0,73.2571332]
[1609490306999,11.48873795,29066.0,29065.0,73.2571332]
[1609490307500,11.28873795,29066.0,29065.0,73.2571332]
[1609490308470,11.18873795,29066.0,29065.0,73.2571332]
[1609490309668,10.35831752,29066.0,29065.0,73.2571332]
[1609490310570,10.28996771,29066.0,29065.0,73.2571332]
[1609490311173,10.28996771,29066.0,29065.0,73.1842652]
[1609490311372,10.28996771,29066.0,29065.0,73.1633022]
[1609490311772,10.28996771,29066.0,29065.0,72.9959132]
[1609490311972,10.28996771,29066.0,29065.0,72.2460012]
[1609490312671,10.28996771,29066.0,29065.0,72.2280332]
[1609490313071,10.28836771,29066.0,29065.0,72.2280332]
[1609490313271,10.28836771,29066.0,29065.0,72.2124612]
[1609490313485,11.38836771,29066.0,29065.0,72.2124612]
[1609490313686,11.28836771,29066.0,29065.0,72.2124612]
[1609490315188,11.48836771,29066.0,29065.0,72.1465472]
[1609490315390,11.28836771,29066.0,29065.0,72.1465472]
[1609490315790,11.28836771,29066.0,29065.0,72.0764832]
[1609490315993,11.28676771,29066.0,29065.0,74.0483072]
[1609490316194,10.47202793,29066.0,29065.0,74.0483072]
[1609490316495,10.47202793,29066.0,29065.0,74.2368872]
[1609490316496,9.78502793,29066.0,29065.0,74.2368872]
[1609490316694,8.78662793,29066.0,29065.0,74.0368872]
[1609490318890,8.78662793,29066.0,29065.0,73.9035332]
[1609490319123,8.78352793,29066.0,29065.0,73.9035332]
[1609490319819,8.78352793,29066.0,29065.0,73.85472282]
[1609490320519,8.78352793,29066.0,29065.0,72.86972282]
[1609490320718,8.78352793,29066.0,29065.0,72.87775544]
[1609490321618,8.78352793,29066.0,29065.0,73.86275544]
[1609490322221,8.78212793,29066.0,29065.0,73.86275544]
[1609490323067,8.78212793,29066.0,29065.0,74.16208494]
[1609490323567,8.78212793,29066.0,29065.0,73.17708494]
[1609490323966,8.78212793,29066.0,29065.0,74.16208494]
[1609490324167,8.78212793,29066.0,29065.0,73.17708494]
[1609490324367,8.78212793,29066.0,29065.0,73.17208494]
[1609490324567,8.78212793,29066.0,29065.0,74.15708494]
[1609490325202,8.78212793,29066.0,29065.0,73.17208494]
[1609490325404,8.78212793,29066.0,29065.0,74.15708494]
[1609490325602,8.78212793,29066.0,29065.0,73.17208494]
[1609490328635,8.78212793,29066.0,29065.0,73.37208494]
[1609490330234,8.78212793,29066.0,29065.0,73.17208494]
[1609490331032,8.77712793,29066.0,29065.0,73.17208494]
[1609490332334,8.77712793,29066.0,29065.0,74.15708494]
[1609490333034,8.77712793,29066.0,29065.0,73.37208494]
[1609490333340,8.77712793,29066.0,29065.0,73.17208494]
[1609490342262,8.77712793,29066.0,29065.0,73.37208494]
[1609490342861,8.77712793,29066.0,29065.0,73.17208494]
[1609490343694,8.77712793,29066.0,29065.0,73.85775544]
[1609490343897,8.63588796,29066.0,29065.0,74.50731882]
[1609490344094,8.63588796,29066.0,29065.0,74.87693182]
[1609490344292,8.63588796,29066.0,29065.0,74.51231882]
[1609490344493,8.63588796,29066.0,29065.0,74.87193182]
[1609490344692,8.63588796,29066.0,29065.0,74.50731882]
[1609490344894,8.63588796,29066.0,29065.0,73.32231882]
[1609490345093,8.73964872,29066.0,29065.0,73.09318882]
[1609490345296,8.73964872,29066.0,29065.0,74.27818882]
[1609490345492,8.73964872,29066.0,29065.0,73.29318882]
[1609490346293,8.63588796,29066.0,29065.0,73.09318882]
[1609490346691,8.63588796,29066.0,29065.0,73.29318882]
[1609490347494,8.63588796,29066.0,29065.0,74.27818882]
[1609490348095,8.63588796,29066.0,29065.0,74.64280182]
[1609490348893,8.63588796,29066.0,29065.0,73.65780182]
[1609490349113,8.63588796,29066.0,29065.0,74.64280182]
[1609490349913,8.65763734,29066.0,29065.0,74.64280182]
[1609490350213,8.65763734,29066.0,29065.0,74.44280182]
[1609490350713,8.65763734,29066.0,29065.0,73.45780182]
[1609490350912,8.65763734,29066.0,29065.0,74.44280182]
[1609490351321,8.65763734,29066.0,29065.0,73.45780182]
[1609490351517,8.65763734,29066.0,29065.0,73.09318882]
[1609490351925,8.91523734,29066.0,29065.0,73.09318882]
[1609490352124,8.95763734,29066.0,29065.0,73.09318882]
[1609490352321,8.75763734,29066.0,29065.0,72.09318882]
[1609490353457,9.25763734,29066.0,29065.0,72.09318882]
[1609490353662,10.26763734,29066.0,29065.0,71.87275544]
[1609490353863,10.39791734,29066.0,29065.0,71.87275544]
[1609490354263,10.09791734,29066.0,29065.0,71.87275544]
[1609490354797,10.26763734,29066.0,29065.0,71.87275544]
[1609490354995,9.96763734,29066.0,29065.0,71.87275544]
[1609490355298,10.09944036,29066.0,29065.0,71.87275544]
[1609490355500,11.01830171,29066.0,29065.0,71.87275544]
[1609490355993,10.36830171,29066.0,29065.0,71.87275544]
[1609490356197,10.56830171,29066.0,29065.0,71.87275544]
[1609490356395,10.66830171,29066.0,29065.0,71.87275544]
[1609490357497,10.86830171,29066.0,29065.0,71.87275544]
[1609490357898,10.66830171,29066.0,29065.0,71.87275544]
[1609490358525,10.86830171,29066.0,29065.0,71.87275544]
[1609490358926,10.36830171,29066.0,29065.0,71.87275544]
[1609490359427,9.75830171,29066.0,29065.0,71.87275544]
[1609490359826,9.42649869,29066.0,29065.0,71.87275544]
[1609490361832,9.42649869,29066.0,29065.0,72.07775544]
[1609490362330,9.15763734,29066.0,29065.0,72.27775544]
[1609490362632,9.15763734,29066.0,29065.0,72.86775544]
[1609490362832,9.15763734,29066.0,29065.0,74.05275544]
[1609490363029,9.15763734,29066.0,29065.0,73.06775544]
[1609490363230,9.15763734,29066.0,29065.0,73.85275544]
[1609490363537,9.15763734,29066.0,29065.0,74.05275544]
[1609490363736,9.15763734,29066.0,29065.0,73.95275544]
[1609490364147,9.15763734,29066.0,29065.0,72.86775544]
[1609490367552,9.15763734,29066.0,29065.0,73.06775544]
[1609490367953,9.15763734,29066.0,29065.0,72.86775544]
[1609490368087,9.15763734,29066.0,29065.0,73.06775544]
[1609490368888,9.15763734,29066.0,29065.0,72.86775544]
[1609490369489,9.15763734,29066.0,29065.0,73.06775544]
[1609490369688,9.15763734,29066.0,29065.0,72.86775544]
[1609490370534,9.15763734,29066.0,29065.0,73.23236844]
[1609490372238,9.15763734,29066.0,29065.0,72.86775544]
[1609490372734,9.15763734,29066.0,29065.0,73.23236844]
[1609490373436,9.15763734,29066.0,29065.0,72.86775544]
[1609490373959,9.41523734,29066.0,29065.0,72.86775544]